fUST/lending_fUST_20250421
["ID","MTS","AMOUNT","RATE_DAILY","PERIOD"]
[358534413,1745238649570,-500.0,0.00025689,2]
[358534414,1745238649580,-500.0,0.00025689,2]
[358534415,1745238649591,-500.0,0.00025689,2]
[358534416,1745238649600,-500.0,0.00025689,2]
[358534417,1745238649611,-500.0,0.00025689,2]
[358534418,1745238649623,-500.0,0.00025689,2]
[358534419,1745238649633,-500.0,0.00025689,2]
[358534420,1745238649643,-500.0,0.00025689,2]
[358534421,1745238649653,-500.0,0.00025689,2]
[358534422,1745238649663,-500.0,0.00025689,2]
[358534423,1745238649673,-500.0,0.00025689,2]
[358534424,1745238649683,-500.0,0.00025689,2]
[358534425,1745238649692,-500.0,0.00025689,2]
[358534426,1745238649703,-500.0,0.00025689,2]
[358534427,1745238649712,-500.0,0.00025689,2]
[358534428,1745238649722,-500.0,0.00025689,2]
[358534429,1745238649731,-500.0,0.00025689,2]
[358534430,1745238649741,-500.0,0.00025689,2]
[358534431,1745238649751,-642.22112678,0.00025689,2]
[358534432,1745238649760,-500.0,0.00025689,2]
[358534433,1745238649769,-500.0,0.00025689,2]
[358534434,1745238649779,-500.0,0.00025689,2]
[358534435,1745238649789,-500.0,0.00025689,2]
[358534436,1745238649799,-500.0,0.00025689,2]
[358534437,1745238649809,-500.0,0.00025689,2]
[358534438,1745238649819,-500.0,0.00025689,2]
[358534439,1745238649829,-500.0,0.00025689,2]
[358534440,1745238649838,-500.0,0.00025689,2]
[358534441,1745238649848,-500.88137727,0.00025689,2]
[358534442,1745238649859,-500.0,0.00025689,2]
[358534443,1745238649869,-500.0,0.00025689,2]
[358534444,1745238649879,-500.57455695,0.00025689,2]
[358534445,1745238649890,-500.0,0.00025689,2]
[358534446,1745238649900,-500.0,0.00025689,2]
[358534447,1745238649911,-500.0,0.00025689,2]
[358534448,1745238649921,-500.0,0.00025689,2]
[358534449,1745238649933,-500.0,0.00025689,2]
[358534450,1745238649942,-500.0,0.00025689,2]
[358534451,1745238649952,-500.0,0.00025689,2]
[358534452,1745238649962,-500.0,0.00025689,2]
[358534453,1745238649973,-500.0,0.00025689,2]
[358534454,1745238649983,-430.97096974,0.00025689,2]
[358534455,1745238649994,-500.0,0.00025689,2]
[358534456,1745238650004,-500.0,0.00025689,2]
[358534457,1745238650014,-500.0,0.00025689,2]
[358534458,1745238650023,-500.0,0.00025689,2]
[358534459,1745238650032,-500.0,0.00025689,2]
[358534460,1745238650043,-500.0,0.00025689,2]
[358534461,1745238650052,-500.0,0.00025689,2]
[358534462,1745238650063,-500.0,0.00025689,2]
[358534463,1745238650073,-500.0,0.00025689,2]
[358534464,1745238650082,-538.28,0.00025689,2]
[358534465,1745238650092,-500.0,0.00025689,2]
[358534466,1745238650102,-500.0,0.00025689,2]
[358534467,1745238650111,-500.0,0.00025689,2]
[358534468,1745238650122,-500.0,0.00025689,2]
[358534469,1745238650133,-360.37,0.00025689,2]
[358534470,1745238650143,-500.0,0.00025689,2]
[358534471,1745238650153,-500.0,0.00025689,2]
[358534472,1745238650162,-500.0,0.00025689,2]
[358534473,1745238650172,-500.0,0.00025689,2]
[358534474,1745238650181,-500.0,0.00025689,2]
[358534475,1745238650192,-500.0,0.00025689,2]
[358534476,1745238650202,-500.0,0.00025689,2]
[358534477,1745238650212,-500.0,0.00025689,2]
[358534478,1745238650222,-500.0,0.00025689,2]
[358534479,1745238650231,-500.0,0.00025689,2]
[358534480,1745238650241,-500.0,0.00025689,2]
[358534481,1745238650251,-500.0,0.00025762,2]
[358534482,1745238650261,-678.87,0.00025762,2]
[358534483,1745238650270,-2062.41,0.00025762,2]
[358534484,1745238650279,-517.67,0.00025762,2]
[358534485,1745238650289,-500.0,0.00025763,2]
[358534486,1745238650299,-500.0,0.00025763,2]
[358534487,1745238650308,-500.0,0.00025763,2]
[358534488,1745238650318,-1413.15,0.00025764,2]
[358534489,1745238650327,-563.24,0.00025765,2]
[358534490,1745238650336,-500.0,0.00025963,2]
[358534491,1745238650345,-523.01,0.00025963,2]
[358534492,1745238650355,-500.0,0.00025963,2]
[358534493,1745238650364,-500.0,0.00025963,2]
[358534494,1745238650373,-500.0,0.00025963,2]
[358534495,1745238650383,-500.0,0.00025963,2]
[358534496,1745238650392,-500.0,0.00025963,2]
[358534497,1745238650401,-500.0,0.00025963,2]
[358534498,1745238650410,-500.0,0.00025963,2]
[358534499,1745238650420,-500.0,0.00025963,2]
[358534500,1745238650429,-500.0,0.00025963,2]
[358534501,1745238650439,-500.0,0.00025963,2]
[358534502,1745238650449,-542.83401299,0.00025963,2]
[358534503,1745238650459,-500.0,0.00025963,2]
[358534504,1745238650468,-500.0,0.00025963,2]
[358534505,1745238650478,-500.0,0.00025963,2]
[358534506,1745238650488,-500.0,0.00025963,2]
[358534507,1745238650498,-500.0,0.00025963,2]
[358534508,1745238650507,-500.0,0.00025963,2]
[358534509,1745238650517,-500.0,0.00025963,2]
[358534510,1745238650526,-500.0,0.00025963,2]
[358534511,1745238650535,-500.0,0.00025963,2]
[358534512,1745238650545,-176.44,0.00025963,2]
[358534513,1745238650559,-184.66,0.00025963,2]
[358534514,1745238650569,-500.0,0.00025963,2]
[358534515,1745238650579,-500.0,0.00025963,2]
[358534516,1745238650590,-500.0,0.00025963,2]
[358534517,1745238650599,-249.08,0.00025963,2]
[358534518,1745238650608,-293.7,0.00025963,2]
[358534519,1745238650618,-500.0,0.00025963,2]
[358534520,1745238650629,-321.66,0.00025963,2]
[358534521,1745238650639,-500.0,0.00025963,2]
[358534522,1745238650648,-500.0,0.00025963,2]
[358534523,1745238650659,-500.0,0.00025963,2]
[358534524,1745238650669,-500.0,0.00025963,2]
[358534525,1745238650679,-500.0,0.00025963,2]
[358534526,1745238650688,-361.0,0.00025991,2]
[358534527,1745238650698,-500.0,0.00026027,2]
[358534528,1745238650707,-500.0,0.00026036,2]
[358534529,1745238650719,-500.0,0.00026036,2]
[358534530,1745238650728,-500.0,0.00026036,2]
[358534531,1745238650738,-678.87,0.00026036,2]
[358534532,1745238650748,-2062.41,0.00026036,2]
[358534533,1745238650758,-500.0,0.00026036,2]
[358534534,1745238650768,-517.67,0.00026036,2]
[358534535,1745238650778,-1413.15,0.00026038,2]
[358534536,1745238650788,-563.24,0.00026039,2]
[358534537,1745238650797,-900.0,0.0002606,2]
[358534538,1745238650807,-761.77050338,0.00026176,6]
[358534539,1745238650817,-587.0,0.00026235,2]
[358534540,1745238650827,-401.56,0.00026237,2]
[358534541,1745238650836,-500.0,0.00026237,2]
[358534542,1745238650846,-500.0,0.00026237,2]
[358534543,1745238650855,-500.0,0.00026237,2]
[358534544,1745238650865,-547.498,0.00026246,2]
[358534545,1745238650875,-707.0,0.00026246,2]
[358534546,1745238650884,-2249.049,0.00026246,2]
[358534547,1745238650894,-402.0,0.00026246,2]
[358534548,1745238650903,-150.659,0.00026246,2]
[358534549,1745238650913,-500.0,0.0002631,2]
[358534550,1745238650923,-500.0,0.0002631,2]
[358534551,1745238650932,-500.0,0.0002631,2]
[358534552,1745238650942,-678.87,0.0002631,2]
[358534553,1745238650952,-2062.41,0.0002631,2]
[358534554,1745238650962,-500.0,0.0002631,2]
[358534555,1745238650971,-517.67,0.0002631,2]
[358534556,1745238650981,-1413.15,0.00026312,2]
[358534557,1745238650991,-563.24,0.00026313,2]
[358534558,1745238651000,-178.24,0.00026511,2]
[358534559,1745238651010,-382.2,0.00026511,2]
[358534560,1745238651019,-187.14,0.00026511,2]
[358534561,1745238651028,-500.0,0.00026584,2]
[358534562,1745238651039,-478.43,0.00026584,2]
[358534563,1745238651048,-500.0,0.00026584,2]
[358534564,1745238651058,-678.87,0.00026584,2]
[358534565,1745238651068,-2062.41,0.00026584,2]
[358534566,1745238651077,-500.0,0.00026584,2]
[358534567,1745238651087,-517.67,0.00026584,2]
[358534568,1745238651096,-1413.15,0.00026586,2]
[358534569,1745238651106,-563.24,0.00026587,2]
[358534570,1745238651116,-460.15609477,0.00026764,2]
[358534571,1745238651126,-500.0,0.00026858,2]
[358534572,1745238651135,-500.0,0.00026858,2]
[358534573,1745238651145,-678.87,0.00026858,2]
[358534574,1745238651155,-2062.41,0.00026858,2]
[358534575,1745238651164,-500.0,0.00026858,2]
[358534576,1745238651174,-517.67,0.00026858,2]
[358534577,1745238651184,-1413.15,0.0002686,2]
[358534578,1745238651193,-563.24,0.00026861,2]
[358534579,1745238651202,-761.77050338,0.00026934,7]
[358534580,1745238651212,-312.84021666,0.00027,3]
[358534581,1745238651222,-312.84021666,0.00027,3]
[358534582,1745238651231,-500.0,0.00027132,2]
[358534583,1745238651240,-500.0,0.00027132,2]
[358534584,1745238651249,-678.87,0.00027132,2]
[358534585,1745238651259,-2062.41,0.00027132,2]
[358534586,1745238651268,-500.0,0.00027132,2]
[358534587,1745238651277,-517.67,0.00027132,2]
[358534588,1745238651287,-1413.15,0.00027134,2]
[358534589,1745238651402,-563.24,0.00027135,2]
[358534590,1745238651412,-500.0,0.00027397,2]
[358534591,1745238651422,-968.196063,0.00027397,2]
[358534592,1745238651431,-227.601121,0.00027397,120]
[358534593,1745238651441,-500.0,0.00027406,2]
[358534594,1745238651450,-500.0,0.00027406,2]
[358534595,1745238651459,-678.87,0.00027406,2]
[358534596,1745238651469,-2062.41,0.00027406,2]
[358534597,1745238651478,-500.0,0.00027406,2]
[358534598,1745238651487,-517.67,0.00027406,2]
[358534599,1745238651496,-1413.15,0.00027408,2]
[358534600,1745238651505,-563.24,0.00027409,2]
[358534601,1745238651515,-500.0,0.00027534,2]
[358534602,1745238651524,-262.435436,0.00027671,2]
[358534603,1745238651533,-456.96,0.0002768,2]
[358534604,1745238651543,-500.0,0.0002768,2]
[358534605,1745238651557,-678.87,0.0002768,2]
[358534606,1745238651566,-2062.41,0.0002768,2]
[358534607,1745238651576,-500.0,0.0002768,2]
[358534608,1745238651585,-517.67,0.0002768,2]
[358534609,1745238651595,-1413.15,0.00027682,2]
[358534610,1745238651604,-563.24,0.00027683,2]
[358534611,1745238651614,-761.77050338,0.00027693,7]
[358534612,1745238651624,-1200.0,0.00027704,5]
[358534613,1745238651633,-250.0,0.00027945,5]
[358534614,1745238651643,-370.70491285,0.00027945,5]
[358534615,1745238651652,-264.4,0.00027954,2]
[358534616,1745238651662,-678.87,0.00027954,2]
[358534617,1745238651671,-2062.41,0.00027954,2]
[358534618,1745238651681,-500.0,0.00027954,2]
[358534619,1745238651690,-517.67,0.00027954,2]
[358534620,1745238651700,-1413.15,0.00027956,2]
[358534621,1745238651709,-563.24,0.00027957,2]
[358534622,1745238651721,-678.87,0.00028228,2]
[358534623,1745238651732,-2062.41,0.00028228,2]
[358534624,1745238651741,-500.0,0.00028228,2]
[358534625,1745238651751,-517.67,0.00028228,2]
[358534626,1745238651760,-1413.15,0.0002823,2]
[358534627,1745238651769,-563.24,0.00028231,2]
[358534628,1745238651779,-1000.0,0.00028252,5]
[358534629,1745238651788,-1000.0,0.00028252,5]
[358534630,1745238651797,-610.83560204,0.00028252,5]
[358534631,1745238651806,-724.03593764,0.00028252,5]
[358534632,1745238651816,-1000.0,0.00028252,5]
[358534633,1745238651825,-1000.0,0.00028252,5]
[358534634,1745238651835,-1000.0,0.00028252,5]
[358534635,1745238651844,-1000.0,0.00028252,5]
[358534636,1745238651853,-761.77050338,0.00028452,8]
[358534637,1745238651863,-261.30209007,0.00028493,5]
[358534638,1745238651872,-678.87,0.00028502,2]
[358534639,1745238651882,-2062.41,0.00028502,2]
[358534640,1745238651891,-230.16,0.00028502,2]
[358534641,1745238651900,-517.67,0.00028502,2]
[358534642,1745238651910,-1413.15,0.00028504,2]
[358534643,1745238651919,-563.24,0.00028505,2]
[358534644,1745238651928,-1000.0,0.00028552,5]
[358534645,1745238651938,-1000.0,0.00028552,5]
[358534646,1745238651947,-1000.0,0.00028552,5]
[358534647,1745238651956,-823.0,0.00028643,2]
[358534648,1745238651965,-1000.0,0.00028752,5]
[358534649,1745238651975,-1000.0,0.00028767,4]
[358534650,1745238651985,-678.87,0.00028776,2]
[358534651,1745238651995,-2062.41,0.00028776,2]
[358534652,1745238652005,-517.67,0.00028776,2]
[358534653,1745238652014,-1413.15,0.00028778,2]
[358534654,1745238652024,-563.24,0.00028779,2]
[358534655,1745238652033,-167.00711413,0.000288,7]
[358534656,1745238652043,-500.0,0.00028989,2]
[358534657,1745238652053,-500.0,0.00028989,2]
[358534658,1745238652063,-505.55586505,0.00028999,2]
[358534659,1745238652072,-500.0,0.00028999,2]
[358534660,1745238652082,-1965.29252809,0.00029,7]
[358534661,1745238652091,-1965.29252809,0.00029,7]
[358534662,1745238652100,-52468.31934128,0.00029,7]
[358534663,1745238652110,-52468.31934128,0.00029,7]
[358534664,1745238652119,-6718.55607906,0.00029,7]
[358534665,1745238652128,-6718.55607906,0.00029,7]
[358534666,1745238652138,-420.65680271,0.00029,7]
[358534667,1745238652148,-160.0,0.00029,7]
[358534668,1745238652158,-160.0,0.00029,7]
[358534669,1745238652167,-872.06200421,0.00029,2]
[358534670,1745238652176,-678.9,0.0002905,2]
[358534671,1745238652187,-2062.4223664,0.0002905,2]
[358534672,1745238652196,-517.85,0.0002905,2]
[358534673,1745238652206,-1413.21,0.00029052,2]
[358534674,1745238652216,-563.45,0.00029053,2]
[358534675,1745238652226,-761.77050338,0.0002921,8]
[358534676,1745238652236,-1500.0,0.00029348,5]
[358534677,1745238652246,-200.0,0.000299,120]
[358534678,1745238652256,-200.0,0.000299,120]
[358534679,1745238652265,-761.77050338,0.00029969,9]
[358534680,1745238652275,-500.0,0.00029999,2]
[358534681,1745238652286,-500.0,0.00029999,2]
[358534682,1745238652295,-200.0,0.0003,2]
[358534683,1745238652305,-152.0,0.0003,2]
[358534684,1745238652314,-245983.22644408,0.0003,7]
[358534685,1745238652324,-309.18937058,0.0003,15]
[358534686,1745238652334,-198.30810755,0.0003,10]
[358534687,1745238652344,-151.0,0.0003,7]
[358534688,1745238652355,-301.0,0.0003,2]
[358534689,1745238652365,-188.88512555,0.00030137,2]
[358534690,1745238652375,-1000.0,0.00030352,5]
[358534691,1745238652384,-1000.0,0.00030352,5]
[358534692,1745238652394,-1000.0,0.00030352,5]
[358534693,1745238652404,-1000.0,0.00030352,5]
[358534694,1745238652413,-457.323273,0.00030352,5]
[358534695,1745238652423,-1000.0,0.00030352,5]
[358534696,1745238652433,-761.77050338,0.00030728,9]
[358534697,1745238652443,-500.0,0.00030883,5]
[358534698,1745238652453,-250.0,0.00030952,5]
[358534699,1745238652463,-301.30817792,0.0003099,2]
[358534700,1745238652472,-1800.0,0.00030992,5]
[358534701,1745238652482,-200.0,0.00031,6]
[358534702,1745238652491,-968.196063,0.0003105,2]
[358534703,1745238652501,-1152.0,0.00031271,3]
[358534704,1745238652510,-1000.0,0.00031431,5]
[358534705,1745238652519,-761.77050338,0.00031486,10]
[358534706,1745238652528,-1500.0,0.00031507,4]
[358534707,1745238652538,-200.0,0.000316,120]
[358534708,1745238652550,-200.0,0.000316,120]
[358534709,1745238652560,-1502.51482479,0.000318,2]
[358534710,1745238652570,-153.0,0.00031848,2]
[358534711,1745238652580,-153.0,0.00031848,2]
[358534712,1745238652589,-153.0,0.00031848,2]
[358534713,1745238652598,-153.0,0.00031849,2]
[358534714,1745238652608,-153.0,0.00031849,2]
[358534715,1745238652617,-153.0,0.00031849,2]
[358534716,1745238652628,-153.0,0.00031849,2]
[358534717,1745238652638,-153.0,0.00031849,2]
[358534718,1745238652647,-153.0,0.00031859,2]
[358534719,1745238652657,-153.0,0.00031859,2]
[358534720,1745238652666,-153.0,0.0003186,2]
[358534721,1745238652676,-153.0,0.0003186,2]
[358534722,1745238652686,-153.0,0.0003186,2]
[358534723,1745238652695,-153.0,0.0003186,2]
[358534724,1745238652705,-153.0,0.0003186,2]
[358534725,1745238652714,-300.274016,0.00031908,2]
[358534726,1745238652724,-842.61541962,0.00031945,120]
[358534727,1745238652733,-227.601121,0.00031963,120]
[358534728,1745238652743,-1257.64436516,0.00031979,5]
[358534729,1745238652752,-152.18160442,0.00031996,2]
[358534730,1745238652762,-151.0,0.00031996,2]
[358534731,1745238652773,-151.0,0.00031996,2]
[358534732,1745238652783,-287.91558489,0.00031996,2]
[358534733,1745238652793,-200.0,0.00032,10]
[358534734,1745238652803,-151.0,0.00032048,2]
[358534735,1745238652813,-151.0,0.00032048,2]
[358534736,1745238652824,-151.0,0.00032048,2]
[358534737,1745238652834,-151.0,0.00032185,2]
[358534738,1745238652844,-151.0,0.00032185,2]
[358534739,1745238652854,-151.0,0.00032185,2]
[358534740,1745238652864,-761.77050338,0.00032245,10]
[358534741,1745238652873,-207.49156184,0.00032322,2]
[358534742,1745238652883,-151.0,0.00032322,2]
[358534743,1745238652893,-199.10112901,0.00032322,2]
[358534744,1745238652902,-246.45003749,0.00032459,2]
[358534745,1745238652913,-2100.0,0.00032636,5]
[358534746,1745238652922,-300.0,0.00032876,30]
[358534747,1745238652931,-300.0,0.00032876,30]
[358534748,1745238652941,-300.0,0.00032876,30]
[358534749,1745238652951,-300.0,0.00032876,30]
[358534750,1745238652961,-300.0,0.00032876,30]
[358534751,1745238652970,-300.0,0.00032876,30]
[358534752,1745238652979,-300.0,0.00032876,30]
[358534753,1745238652988,-300.0,0.00032876,30]
[358534754,1745238652998,-300.0,0.00032876,30]
[358534755,1745238653007,-300.0,0.00032876,30]
[358534756,1745238653017,-300.0,0.00032876,30]
[358534757,1745238653027,-300.0,0.00032876,30]
[358534758,1745238653037,-300.0,0.00032876,30]
[358534759,1745238653046,-300.0,0.00032876,30]
[358534760,1745238653056,-300.0,0.00032876,30]
[358534761,1745238653066,-300.0,0.00032876,30]
[358534762,1745238653075,-300.0,0.00032876,30]
[358534763,1745238653085,-300.0,0.00032876,30]
[358534764,1745238653094,-300.0,0.00032876,30]
[358534765,1745238653103,-340.57059734,0.00032876,30]
[358534766,1745238653113,-24299.71419148,0.000329,2]
[358534767,1745238653123,-11181.66,0.000329,30]
[358534768,1745238653132,-2896.98,0.000329,30]
[358534769,1745238653141,-151.0,0.000329,14]
[358534770,1745238653154,-213.266074,0.000329,14]
[358534771,1745238653164,-151.0,0.000329,14]
[358534772,1745238653173,-213.266074,0.000329,14]
[358534773,1745238653183,-151.0,0.000329,14]
[358534774,1745238653192,-151.0,0.000329,14]
[358534775,1745238653202,-420.65680271,0.000329,30]
[358534776,1745238653212,-151.0,0.000329,14]
[358534777,1745238653221,-203.014475,0.000329,14]
[358534778,1745238653232,-151.0,0.000329,14]
[358534779,1745238653241,-151.0,0.000329,14]
[358534780,1745238653251,-151.0,0.000329,14]
[358534781,1745238653260,-151.0,0.000329,14]
[358534782,1745238653270,-200.0,0.00033,14]
[358534783,1745238653280,-160.0,0.00033,30]
[358534784,1745238653290,-160.0,0.00033,30]
[358534785,1745238653300,-166.78835393,0.00033,120]
[358534786,1745238653309,-209.82912428,0.00033,30]
[358534787,1745238653319,-653.91408926,0.00033,120]
[358534788,1745238653328,-312.84021666,0.00033,30]
[358534789,1745238653338,-301.0,0.00033,2]
[358534790,1745238653348,-761.77050338,0.00033003,11]
[358534791,1745238653358,-200.0,0.000333,120]
[358534792,1745238653367,-200.0,0.000333,120]
[358534793,1745238653377,-157.08990772,0.00033753,2]
[358534794,1745238653387,-761.77050338,0.00033762,11]
[358534795,1745238653396,-200.0,0.00034,18]
[358534796,1745238653406,-1731.65,0.00034,7]
[358534797,1745238653415,-199.57,0.00034,7]
[358534798,1745238653424,-1613.0,0.0003414,3]
[358534799,1745238653433,-2000.0,0.00034247,4]
[358534800,1745238653443,-386.26552735,0.00034279,5]
[358534801,1745238653452,-761.77050338,0.00034521,12]
[358534802,1745238653462,-968.196063,0.00034703,2]
[358534803,1745238653471,-2896.98,0.000348,30]
[358534804,1745238653480,-3140.88712962,0.0003487,4]
[358534805,1745238653490,-7152.69924332,0.0003499,30]
[358534806,1745238653500,-6166.50347177,0.00035,3]
[358534807,1745238653510,-200.0,0.00035,22]
[358534808,1745238653520,-200.0,0.00035,120]
[358534809,1745238653529,-200.0,0.00035,120]
[358534810,1745238653539,-160.0,0.00035,3]
[358534811,1745238653648,-10584.31835036,0.00035,2]
[358534812,1745238653658,-96848.22040648,0.00035,2]
[358534813,1745238653668,-173.34457611,0.00035,5]
[358534814,1745238653678,-184.23850872,0.00035,10]
[358534815,1745238653687,-761.77050338,0.00035279,12]
[358534816,1745238653696,-170.52731341,0.00035616,42]
[358534817,1745238653706,-500.0,0.00035616,7]
[358534818,1745238653716,-179.51409327,0.00035616,7]
[358534819,1745238653726,-616.68,0.00036,30]
[358534820,1745238653735,-8558.28276693,0.00036,4]
[358534821,1745238653744,-200.0,0.00036,26]
[358534822,1745238653753,-301.0,0.00036,2]
[358534823,1745238653763,-761.77050338,0.00036038,13]
[358534824,1745238653772,-201.95835085,0.0003621,2]
[358534825,1745238653781,-262.68985209,0.0003624,2]
[358534826,1745238653791,-189.82551889,0.00036432,5]
[358534827,1745238653800,-2896.98,0.000365,30]
[358534828,1745238653810,-227.601121,0.0003653,120]
[358534829,1745238653819,-11181.66,0.000366,30]
[358534830,1745238653828,-200.0,0.000367,120]
[358534831,1745238653837,-761.77050338,0.00036797,13]
[358534832,1745238653847,-5782.81952145,0.00036898,120]
[358534833,1745238653856,-2500.0,0.00036986,4]
[358534834,1745238653866,-325.95,0.00037,30]
[358534835,1745238653877,-420.65680271,0.00037,3]
[358534836,1745238653886,-160.0,0.00037,3]
[358534837,1745238653897,-160.0,0.00037,120]
[358534838,1745238653907,-312.84021666,0.00037,120]
[358534839,1745238653916,-2258.0,0.00037272,3]
[358534840,1745238653926,-172.85226834,0.00037539,10]
[358534841,1745238653936,-761.77050338,0.00037555,14]
[358534842,1745238653946,-1007.06579768,0.000378,2]
[358534843,1745238653955,-1267.5636576,0.00038,4]
[358534844,1745238653965,-2896.98,0.000381,30]
[358534845,1745238653975,-1500.0,0.00038271,5]
[358534846,1745238653984,-1500.0,0.00038271,5]
[358534847,1745238653994,-1500.0,0.00038271,5]
[358534848,1745238654004,-1500.0,0.00038271,5]
[358534849,1745238654014,-1500.0,0.00038271,5]
[358534850,1745238654023,-1500.0,0.00038271,5]
[358534851,1745238654033,-761.77050338,0.00038314,14]
[358534852,1745238654043,-507.11373466,0.00038356,90]
[358534853,1745238654053,-968.196063,0.00038356,2]
[358534854,1745238654062,-200.0,0.00038356,5]
[358534855,1745238654072,-25713.9229918,0.00038356,5]
[358534856,1745238654081,-200.0,0.000384,120]
[358534857,1745238654091,-1500.0,0.00038571,5]
[358534858,1745238654101,-543.37845199,0.00038571,5]
[358534859,1745238654111,-1500.0,0.00038571,5]
[358534860,1745238654120,-1500.0,0.00038771,5]
[358534861,1745238654130,-366.23054461,0.00039,2]
[358534862,1745238654139,-176.48975296,0.00039,120]
[358534863,1745238654149,-271.5400069,0.00039,7]
[358534864,1745238654159,-761.77050338,0.00039072,15]
[358534865,1745238654168,-1000.0,0.000391,2]
[358534866,1745238654178,-1000.0,0.000391,2]
[358534867,1745238654187,-1000.0,0.000391,2]
[358534868,1745238654197,-1000.0,0.000391,2]
[358534869,1745238654206,-1000.0,0.000391,2]
[358534870,1745238654215,-1000.0,0.000391,2]
[358534871,1745238654225,-1000.0,0.000391,2]
[358534872,1745238654234,-1000.0,0.000391,2]
[358534873,1745238654243,-1000.0,0.000391,2]
[358534874,1745238654252,-1001.6420464,0.000391,2]
[358534875,1745238654262,-2915.64550625,0.000392,120]
[358534876,1745238654271,-500.13796693,0.0003947,2]
[358534877,1745238654281,-45115.3987709,0.00039471,2]
[358534878,1745238654291,-688.09424295,0.000395,30]
[358534879,1745238654300,-1067.62970625,0.0003958,120]
[358534880,1745238654310,-1094.25527078,0.00039726,4]
[358534881,1745238654319,-10521.22178417,0.0003978,2]
[358534882,1745238654328,-2000.91,0.00039799,2]
[358534883,1745238654338,-2000.91,0.00039799,2]
[358534884,1745238654347,-2000.91,0.00039799,2]
[358534885,1745238654357,-2000.91,0.00039799,2]
[358534886,1745238654366,-2000.91,0.00039799,2]
[358534887,1745238654375,-2000.91,0.00039799,2]
[358534888,1745238654385,-2000.91,0.00039799,2]
[358534889,1745238654395,-2000.91,0.00039799,2]
[358534890,1745238654404,-2000.91,0.00039799,2]
[358534891,1745238654414,-2000.91,0.00039799,2]
[358534892,1745238654423,-17035.63426349,0.000398,2]
[358534893,1745238654472,-2632.55469546,0.000398,2]
[358534894,1745238654631,-500.0,0.00022737,2]
[358534895,1745238654641,-358.78468859,0.00022737,2]
[358534896,1745238654655,-141.21531141,0.00022737,2]
[358534897,1745238654665,-500.0,0.00022737,2]
[358534898,1745238654675,-500.0,0.00023011,2]
[358534899,1745238654684,-500.0,0.00023011,2]
[358534900,1745238654694,-500.0,0.00025216,2]
[358534901,1745238654712,-729.16666667,0.000253,2]
[358534902,1745238654721,-420.65680271,0.000253,2]
[358534903,1745238654730,-500.0,0.0002549,2]
[358534904,1745238654740,-500.0,0.00025764,2]
[358534905,1745238654749,-500.0,0.00026038,2]
[358534906,1745238654759,-500.0,0.00026312,2]
[358534907,1745238654768,-500.0,0.00026586,2]
[358534908,1745238654778,-500.0,0.0002686,2]
[358534909,1745238654787,-423.55,0.00027134,2]
[358534910,1745238654796,-151.0,0.000329,14]
[358534911,1745238654806,-10331.61249248,0.000398,2]
[358534912,1745238654818,-1750.91158176,0.000398,2]